Workbook

Sheet 29.09
A1: МБОУ "СОШ № 32" | E1: 2022-09-29
A3: Завтрак 1-4 классы
A4: Наименование | B4: Выход | D4: Белки | E4: Жиры | F4: Угл-ды | G4: Ккал
A5: Яблоки свежие | B5: 120 | D5: 0.48 | E5: 0.48 | F5: 11.76 | G5: 56
A6: Каша вязкая молочная из гречневой крупы с маслом | B6: 150/5 | D6: 9.21 | E6: 11.01 | F6: 25.28 | G6: 237
A7: Блинчики со сгущённым молоком | B7: 2шт/90/25 | D7: 3.91 | E7: 3.37 | F7: 25.05 | G7: 147
A8: Чай с молоком | B8: 200/8 | D8: 1.52 | E8: 0.75 | F8: 10.39 | G8: 59
A9: Батон | B9: 25 | D9: 1.88 | E9: 0.72 | F9: 12.85 | G9: 66
A11: Итого: | D11: =SUM(D5:D10) -> 17 | E11: =SUM(E5:E10) -> 16.33 | F11: =SUM(F5:F10) -> 85.33 | G11: =SUM(G5:G10) -> 565
A13: Обед 1-4 классы
A14: Наименование | B14: Выход | D14: Белки | E14: Жиры | F14: Угл-ды | G14: Ккал
A15: Щи из свежей капусты с картофелем, с фрикадельками из птицы со сметаной | B15: 250/22/5 | D15: 5.6 | E15: 9.7 | F15: 9.8 | G15: 141
A16: Корж яблочный | B16: 65 | D16: 3.3 | E16: 5.9 | F16: 34 | G16: 251
A17: Компот из свежих ягод | B17: 200 | D17: 0.08 | E17: 0.1 | F17: 11.94 | G17: 49
A18: Хлеб ржано-пшеничный | B18: 30 | D18: 1.5 | E18: 0.3 | F18: 13.5 | G18: 66
A19: Итого: | D19: =SUM(D15:D18) -> 10.48 | E19: =SUM(E15:E18) -> 16 | F19: 69.24 | G19: 507
B21: Сагдиева Л.Ф.
B22: Руслова В.С.
A24: МБОУ "СОШ № 32" | E24: =E1 -> 2022-09-29
A26: Обед 5-7 классы
A27: Наименование | B27: Выход | D27: Белки | E27: Жиры | F27: Угл-ды | G27: Ккал
A28: Огурцы свежие | B28: 100 | D28: 0.7 | E28: 0.1 | F28: 1.9 | G28: 11
A29: Рыба запеченная с овощами | B29: 75/25 | D29: 15.8 | E29: 9.9 | F29: 2.61 | G29: 163
A30: Макаронные изделия отварные | B30: 180 | D30: 6.77 | E30: 5.4 | F30: 43.13 | G30: 248
A31: Чай пакетированный с сахаром, лимоном | B31: 200/8/5 | D31: 0.05 | F31: 8.13 | G31: 34
A32: Хлеб ржано-пшеничный / пшеничный | B32: 25/20 | D32: 2.77 | E32: 0.4 | F32: 21.1 | G32: 102
A34: Итого: | D34: =SUM(D28:D33) -> 26.09 | E34: =SUM(E28:E33) -> 15.8 | F34: =SUM(F28:F33) -> 76.87 | G34: =SUM(G28:G33) -> 558
A36: СУП 5-11 классы
A37: Наименование | B37: Выход | D37: Белки | E37: Жиры | F37: Угл-ды | G37: Ккал
A38: Щи из свежей капусты с картофелем, с фрикадельками из мяса со сметаной | B38: 250/11/10 | D38: 3.83 | E38: 8.2 | F38: 9.5 | G38: 128
A40: Итого: | D40: =SUM(D38:D39) -> 3.83 | E40: =SUM(E38:E39) -> 8.2 | F40: 9.5 | G40: 128
B45: Сагдиева Л.Ф.
B46: Руслова В.С.
A48: МБОУ "СОШ № 32" | E48: =E24 -> 2022-09-29
A50: Обед 8-11 классы
A51: Наименование | B51: Выход | D51: Белки | E51: Жиры | F51: Угл-ды | G51: Ккал
A52: =A28 -> Огурцы свежие | B52: =B28 -> 100 | C52: 0 | D52: 0.7 | E52: 0.1 | F52: 1.9 | G52: 11
A53: Яблоки свежие | B53: 120 | D53: 0.48 | E53: 0.48 | F53: 11.76 | G53: 56
A54: Салат Каприз | B54: 80 | D54: 2.2 | E54: 9.6 | F54: 4.5 | G54: 115
A55: Салат Витаминный | B55: 100 | D55: 1.21 | E55: 5.2 | F55: 10.9 | G55: 96
A56: Щи из свежей капусты с картофелем, с фрикадельками изптицы со сметаной | B56: 250/11/5 | D56: 3.33 | E56: 6.4 | F56: 7.56 | G56: 120
A57: Рыба запеченная с овощами | B57: 75/25 | D57: 15.8 | E57: 9.9 | F57: 2.61 | G57: 163
A58: Голень куриная в томатном соусе | B58: 100 | D58: 24.5 | E58: 25.4 | F58: 2.22 | G58: 337
A59: Буритос с курицей и сыром | B59: 170 | D59: 20.4 | E59: 33.3 | F59: 27.95 | G59: 496
A60: Макаронные изделия отварные | B60: 180 | D60: 6.77 | E60: 5.4 | F60: 43.13 | G60: 248
A61: Картофель тушеный | B61: 180 | D61: 3.9 | E61: 12.7 | F61: 29.4 | G61: 249
A62: Чай пакетированный с сахаром, лимоном | B62: 200/8/5 | D62: 0.05 | F62: 8.13 | G62: 34
A63: Компот из урюка | B63: 200 | D63: 1 | E63: 0.1 | F63: 30.56 | G63: 128
A64: Хлеб ржано-пшеничный / пшеничный | B64: 25/20 | D64: 2.77 | E64: 0.4 | F64: 21.1 | G64: 102
A68: Итого: | D68: =SUM(D52:D67) -> 83.11 | E68: =SUM(E52:E67) -> 108.98 | F68: =SUM(F52:F67) -> 201.72 | G68: =SUM(G52:G67) -> 2155
B69: Сагдиева Л.Ф.
B70: Руслова В.С.

Sheet 30.09
A1: МБОУ "СОШ № 32" | E1: 2022-09-30
A3: Завтрак 1-4 классы
A4: Наименование | B4: Выход | D4: Белки | E4: Жиры | F4: Угл-ды | G4: Ккал
A5: Салат витаминный | B5: 60 | D5: 0.79 | E5: 3.1 | F5: 6.71 | G5: 59
A6: Блинчики со сгущённым молоком | B6: 45/10 | D6: 2.19 | E6: 2.52 | F6: 13.5 | G6: 85
A7: Биточки рыбные с соусом томатным | B7: 65/25 | D7: 9.25 | E7: 7.66 | F7: 2.05 | G7: 115
A8: Пюре картофельное | B8: 160 | D8: 3.5 | E8: 4.96 | F8: 23.49 | G8: 155
A9: Чай с сахаром | B9: 200/8 | D9: 1 | E9: 0.08 | F9: 20.56 | G9: 87
A10: Хлеб ржано-пшеничный / пшеничный | B10: 20/20 | D10: 2.52 | E10: 0.36 | F10: 18.84 | G10: 91
A11: Итого: | D11: =SUM(D5:D10) -> 19.25 | E11: =SUM(E5:E10) -> 18.68 | F11: =SUM(F5:F10) -> 85.15 | G11: =SUM(G5:G10) -> 592
A13: Обед 1-4 классы
A14: Наименование | B14: Выход | D14: Белки | E14: Жиры | F14: Угл-ды | G14: Ккал
A15: Картофель тушёный с мясным фаршем | B15: 160 | D15: 11.9 | E15: 13.5 | F15: 22 | G15: 258
A16: Чай с сахаром | B16: 200/8 | D16: 0.02 | E16: 0.001 | F16: 7.9 | G16: 32
A17: Хлеб ржано-пшеничный | B17: 25 | D17: 1.25 | E17: 0.25 | F17: 11.3 | G17: 55
A19: Итого: | D19: =SUM(D15:D18) -> 13.17 | E19: =SUM(E15:E18) -> 13.751 | F19: 41.2 | G19: 345
B21: Сагдиева Л.Ф.
B22: Руслова В.С.
A24: МБОУ "СОШ № 32" | E24: =E1 -> 2022-09-30
A26: Обед 5-7 классы
A27: Наименование | B27: Выход | D27: Белки | E27: Жиры | F27: Угл-ды | G27: Ккал
A28: Яйцо под соусом Переменка | B28: 48/10 | D28: 6.4 | E28: 11.3 | F28: 0.8 | G28: 130
A29: Шашлычок из куриных грудок с соусом Переменка | B29: 80/10 | D29: 13.9 | E29: 17.9 | F29: 1.4 | G29: 221
A30: Рагу овощное | B30: 180 | D30: 3.36 | E30: 9.2 | F30: 20.2 | G30: 178
A31: Чай пакетированный с сахаром, лимоном | B31: 200/8/5 | D31: 0.05 | F31: 8.13 | G31: 34
A32: Хлеб ржано-пшеничный / пшеничный | B32: 25/20 | D32: 2.77 | E32: 0.4 | F32: 21.1 | G32: 102
A34: Итого: | D34: =SUM(D28:D33) -> 26.48 | E34: =SUM(E28:E33) -> 38.8 | F34: =SUM(F28:F33) -> 51.63 | G34: =SUM(G28:G33) -> 665
A36: СУП 5-11 классы
A37: Наименование | B37: Выход | D37: Белки | E37: Жиры | F37: Угл-ды | G37: Ккал
A38: Рассольник Ленинградский с фрикадельками из птицы, со сметаной | B38: 200/11/5 | D38: 3.8 | E38: 7.3 | F38: 14 | G38: 130
A40: Итого: | D40: =SUM(D38:D39) -> 3.8 | E40: =SUM(E38:E39) -> 7.3 | F40: 14 | G40: 130
B45: Сагдиева Л.Ф.
B46: Руслова В.С.
A48: МБОУ "СОШ № 32" | E48: =E24 -> 2022-09-30
A50: Обед 8-11 классы
A51: Наименование | B51: Выход | D51: Белки | E51: Жиры | F51: Угл-ды | G51: Ккал
A52: =A28 -> Яйцо под соусом Переменка | B52: =B28 -> 48/10 | C52: 0 | D52: 6.4 | E52: 11.3 | F52: 0.8 | G52: 130
A53: Помидоры свежие | B53: 100 | D53: 1.1 | E53: 0.2 | F53: 3.8 | G53: 24
A54: Салат из моркови | B54: 100 | D54: 1.05 | E54: 10.1 | F54: 15.6 | G54: 158
A55: Салат из б/к капусты | B55: 100 | D55: 1.55 | E55: 5.1 | F55: 9.41 | G55: 91
A56: Рассольник Ленинградский со сметаной | B56: 250/5 | D56: 2.42 | E56: 6.1 | F56: 17.1 | G56: 134
A57: Рыба запеченная с сыром, соусом Переменка | B57: 70/5/5 | D57: 17.5 | E57: 10.6 | F57: 2.7 | G57: 175
A58: Шашлычок из куриных грудок с соусом Переменка | B58: 80/10 | D58: 13.9 | E58: 17.9 | F58: 1.4 | G58: 221
A59: Котлеты Аппетитные с соусом томатным | B59: 80/20 | D59: 11.8 | E59: 13.6 | F59: 7.91 | G59: 200
A60: Говядина со стручковой фасолью | B60: 40/50 | D60: 15.6 | E60: 21.6 | F60: 4 | G60: 274
A61: Рис отварной | B61: 180 | D61: 4.6 | E61: 6.5 | F61: 48 | G61: 269
A62: Рагу овощное | B62: 180 | D62: 3.36 | E62: 9.2 | F62: 20.2 | G62: 178
A63: Чай пакетированный с сахаром, лимоном | B63: 200/8/5 | D63: 0.05 | F63: 8.13 | G63: 34
A64: Напиток из шиповника | B64: 200 | D64: 0.01 | F64: 10.2 | G64: 41
A65: Хлеб ржано-пшеничный / пшеничный | B65: 25/20 | D65: 2.77 | E65: 0.4 | F65: 21.1 | G65: 102
A68: Итого: | D68: =SUM(D52:D67) -> 82.11 | E68: =SUM(E52:E67) -> 112.6 | F68: =SUM(F52:F67) -> 170.35 | G68: =SUM(G52:G67) -> 2031
B69: Сагдиева Л.Ф.
B70: Руслова В.С.

Sheet 01.10 СБ
A1: МБОУ "СОШ № 32" | E1: 2022-10-01
A3: Обед 5-11 классы
A4: Наименование | B4: Выход | D4: Белки | E4: Жиры | F4: Угл-ды | G4: Ккал
A5: Салат из свежих помидор | B5: 100 | D5: 1.05 | E5: 6.2 | F5: 3.6 | G5: 77
A6: Сосиски отварные | B6: 2шт/100 | D6: 10.4 | E6: 20.1 | F6: 0.8 | G6: 226
A7: Спагетти отварные с маслом | B7: 180/5 | D7: 6.8 | E7: 7.5 | F7: 43.2 | G7: 268
A8: Чай с сахаром, лимоном | B8: 200/8/6 | D8: 0.05 | F8: 8.13 | G8: 34
A9: Хлеб ржано-пшеничный / пшеничный | B9: 20/20 | D9: 2.52 | E9: 0.4 | F9: 18.84 | G9: 91
A11: Итого: | D11: =SUM(D5:D10) -> 20.82 | E11: =SUM(E5:E10) -> 34.2 | F11: =SUM(F5:F10) -> 74.57 | G11: =SUM(G5:G10) -> 696
B22: Сагдиева Л.Ф.
B23: Руслова В.С.

Sheet 03.10
A1: МБОУ "СОШ № 32" | E1: 2022-10-03
A3: Завтрак 1-4 классы
A4: Наименование | B4: Выход | D4: Белки | E4: Жиры | F4: Угл-ды | G4: Ккал
A5: Сыр порциями | B5: 15 | D5: 3.94 | E5: 3.99 | G5: 53
A6: Яблоки | B6: 120 | D6: 0.48 | E6: 0.48 | F6: 11.76 | G6: 56
A7: Каша вязкая молочная из пшённой крупы с маслом | B7: 150/5 | D7: 4.96 | E7: 10.32 | F7: 6.34 | G7: 139
A8: Блинчики со сгущённым молоком | B8: 1шт/45/10 | D8: 3.19 | E8: 2.52 | F8: 19.5 | G8: 114
A9: Какао с молоком | B9: 200 | D9: 3.97 | E9: 2.1 | F9: 25.16 | G9: 135
A10: Батон | B10: 35 | D10: 2.62 | E10: 1.02 | F10: 17.99 | G10: 92
A11: Итого: | D11: =SUM(D5:D10) -> 19.16 | E11: =SUM(E5:E10) -> 20.43 | F11: =SUM(F5:F10) -> 80.75 | G11: =SUM(G5:G10) -> 589
A13: Обед 1-4 классы
A14: Наименование | B14: Выход | D14: Белки | E14: Жиры | F14: Угл-ды | G14: Ккал
A15: Суп гороховый с гренками, с мясными фрикадельками | B15: 250/10/22 | D15: 12.6 | E15: 8.7 | F15: 24.3 | G15: 225
A16: Перемяч с мясом печеный | B16: 50 | D16: 6.3 | E16: 10.1 | F16: 16.4 | G16: 183
A17: Чай с сахаром | B17: 200/8 | D17: 0.02 | F17: 7.9 | G17: 32
A18: Хлеб ржано-пшеничный | B18: 15 | D18: 0.75 | E18: 0.15 | F18: 6.8 | G18: 33
A19: Итого: | D19: =SUM(D15:D18) -> 19.67 | E19: =SUM(E15:E18) -> 18.95 | F19: 55.4 | G19: 473
B21: Сагдиева Л.Ф.
B22: Руслова В.С.
A24: МБОУ "СОШ № 32" | E24: =E1 -> 2022-10-03
A26: Обед 5-7 классы
A27: Наименование | B27: Выход | D27: Белки | E27: Жиры | F27: Угл-ды | G27: Ккал
A28: Помидоры свежие | B28: 75 | D28: 0.83 | E28: 0.2 | F28: 2.85 | G28: 18
A29: Лазанья с мясом | B29: 160 | D29: 17.7 | E29: 24.1 | F29: 25.9 | G29: 410
A30: Компот из замороженой компотной смеси | B30: 200 | D30: 0.14 | F30: 11.2 | G30: 46
A31: Хлеб ржано-пшеничный / пшеничный | B31: 20/20 | D31: 2.52 | E31: 0.4 | F31: 18.84 | G31: 91
A34: Итого: | D34: =SUM(D28:D33) -> 21.19 | E34: =SUM(E28:E33) -> 24.7 | F34: =SUM(F28:F33) -> 58.79 | G34: =SUM(G28:G33) -> 565
A36: СУП 5-11 классы
A37: Наименование | B37: Выход | D37: Белки | E37: Жиры | F37: Угл-ды | G37: Ккал
A38: Суп гороховый с гренками, с мясными фрикадельками | B38: 250/10/22 | D38: 12.6 | E38: 8.7 | F38: 24.3 | G38: 225
A40: Итого: | D40: =SUM(D38:D39) -> 12.6 | E40: =SUM(E38:E39) -> 8.7 | F40: 24.3 | G40: 225
B45: Сагдиева Л.Ф.
B46: Руслова В.С.
A48: МБОУ "СОШ № 32" | E48: =E24 -> 2022-10-03
A50: Обед 8-11 классы
A51: Наименование | B51: Выход | D51: Белки | E51: Жиры | F51: Угл-ды | G51: Ккал
A52: =A28 -> Помидоры свежие | B52: =B28 -> 75 | C52: 0 | D52: 0.83 | E52: 0.2 | F52: 2.85 | G52: 18
A53: Салат из б/к капусты | B53: 100 | D53: 1.55 | E53: 5.1 | F53: 9.41 | G53: 91
A54: Салат из фасоли, кукурузы с сыром, сухариками | B54: 80 | D54: 5.89 | E54: 12 | F54: 8.9 | G54: 168
A55: Суп гороховый с гренками, с мясными фрикадельками | B55: 250/10/11 | D55: 10.5 | E55: 7 | F55: 24.31 | G55: 202
A56: Тефтели из говядины в соусе томатном | B56: 70/40 | D56: 10.2 | E56: 10.8 | F56: 8.47 | G56: 173
A57: Рыба по-Московски | B57: 70/20 | D57: 18 | E57: 13.8 | F57: 2 | G57: 204
A58: Грудки куриные запеченные с сыром, томатом | B58: 80/5 | D58: 25.3 | E58: 24.14 | F58: 0.41 | G58: 321
A59: Голень куриная запеченная в сливочном маринаде | B59: 90 | D59: 22.7 | E59: 33 | F59: 1.8 | G59: 391
A60: Лазанья с мясом | B60: 160 | D60: 17.7 | E60: 24.1 | F60: 25.9 | G60: 410
A61: Блинчики со сгущённым молоком | B61: 4шт/180/30 | D61: 12.8 | E61: 10.1 | F61: 78 | G61: 455
A62: Спагетти отварные с маслом растительным | B62: 180 | D62: 6.72 | E62: 6.1 | F62: 43.1 | G62: 254
A63: Каша гречневая вязкая | B63: 180 | D63: 4.2 | E63: 5.6 | F63: 26.41 | G63: 173
A64: Овощная смесь отварная | B64: 200 | D64: 3.9 | E64: 3.6 | F64: 8.8 | G64: 80
A65: Чай черный пакетированный с сахаром | B65: 200/8 | F65: 8 | G65: 32
A66: Компот из замороженой компотной смеси | B66: 200 | D66: 0.14 | F66: 11.2 | G66: 46
A67: Хлеб ржано-пшеничный / пшеничный | B67: 20/20 | D67: 2.52 | E67: 0.4 | F67: 18.84 | G67: 91
A68: Итого: | D68: =SUM(D52:D67) -> 142.95 | E68: =SUM(E52:E67) -> 155.94 | F68: =SUM(F52:F67) -> 278.4 | G68: =SUM(G52:G67) -> 3109
B69: Сагдиева Л.Ф.
B70: Руслова В.С.

Sheet 04.10
A1: МБОУ "СОШ № 32" | E1: 2022-10-04
A3: Завтрак 1-4 классы
A4: Наименование | B4: Выход | D4: Белки | E4: Жиры | F4: Угл-ды | G4: Ккал
A5: Яблоки | B5: 120 | D5: 0.48 | E5: 0.48 | F5: 11.76 | G5: 56
A6: Масло сливочное порциями | B6: 10 | D6: 0.08 | E6: 7.25 | F6: 0.08 | G6: 66
A7: Макаронные изделия отварные с сыром, маслом | B7: 180/5 | D7: 11.82 | E7: 6.47 | F7: 19.58 | G7: 184
A8: Чай с сахаром | B8: 200/8 | D8: 0.02 | F8: 7.98 | G8: 32
A9: Печенье сдобное Вкусное | B9: 2шт/30 | D9: 2.42 | E9: 4.8 | F9: 13.8 | G9: 108
A10: Батон | B10: 25 | D10: 1.87 | E10: 0.72 | F10: 12.85 | G10: 66
A11: Итого: | D11: =SUM(D5:D10) -> 16.69 | E11: =SUM(E5:E10) -> 19.72 | F11: =SUM(F5:F10) -> 66.05 | G11: =SUM(G5:G10) -> 512
A13: Обед 1-4 классы
A14: Наименование | B14: Выход | D14: Белки | E14: Жиры | F14: Угл-ды | G14: Ккал
A15: Цыплята запеченные | B15: 90 | D15: 24.03 | E15: 22.1 | F15: 0.9 | G15: 299
A16: Рис отварной | B16: 180 | D16: 4.6 | E16: 6.5 | F16: 48.01 | G16: 269
A17: Чай с сахаром | B17: 200/8 | D17: 0.02 | F17: 7.98 | G17: 32
A18: Хлеб ржано-пшеничный | B18: 15 | D18: 0.75 | E18: 0.15 | F18: 6.8 | G18: 33
A19: Итого: | D19: =SUM(D15:D18) -> 29.4 | E19: =SUM(E15:E18) -> 28.75 | F19: 63.69 | G19: 633
B21: Сагдиева Л.Ф.
B22: Руслова В.С.
A24: МБОУ "СОШ № 32" | E24: =E1 -> 2022-10-04
A26: Обед 5-7 классы
A27: Наименование | B27: Выход | D27: Белки | E27: Жиры | F27: Угл-ды | G27: Ккал
A28: Салат Мечта | B28: 100 | D28: 2.08 | E28: 15.24 | F28: 6 | G28: 170
A29: Шашлычок из куриных грудок | B29: 90 | D29: 17.2 | E29: 15.4 | F29: 1.1 | G29: 210
A30: Макароны отварные | B30: 200 | D30: 0.14 | F30: 11.2 | G30: 46
A31: Чай с сахаром, урюком | B31: 200/8/10 | D31: 0.5 | F31: 13.28 | G31: 56
A32: Хлеб ржано-пшеничный / пшеничный | B32: 20/20 | D32: 2.52 | E32: 0.4 | F32: 18.84 | G32: 91
A34: Итого: | D34: =SUM(D28:D33) -> 22.44 | E34: =SUM(E28:E33) -> 31.04 | F34: =SUM(F28:F33) -> 50.42 | G34: =SUM(G28:G33) -> 573
A36: СУП 5-11 классы
A37: Наименование | B37: Выход | D37: Белки | E37: Жиры | F37: Угл-ды | G37: Ккал
A38: Борщ со свежей капустой, картофелем, фрикадельками из птицы со сметаной | B38: 250/22/10 | D38: 5.6 | E38: 9.1 | F38: 12.7 | G38: 164
A40: Итого: | D40: =SUM(D38:D39) -> 5.6 | E40: =SUM(E38:E39) -> 9.1 | F40: 12.7 | G40: 164
B45: Сагдиева Л.Ф.
B46: Руслова В.С.
A48: МБОУ "СОШ № 32" | E48: =E24 -> 2022-10-04
A50: Обед 8-11 классы
A51: Наименование | B51: Выход | D51: Белки | E51: Жиры | F51: Угл-ды | G51: Ккал
A52: =A28 -> Салат Мечта | B52: =B28 -> 100 | C52: 0 | D52: 2.08 | E52: 15.24 | F52: 6 | G52: 170
A53: Салат из свежих помидор с луком | B53: 100 | D53: 1.05 | E53: 6.18 | F53: 3.61 | G53: 77
A54: Салат из моркови | B54: 100 | D54: 1.05 | E54: 10.1 | F54: 15.6 | G54: 158
A55: Борщ со свежей капустой, картофелем, фрикадельками из птицы со сметаной | B55: 250/11/5 | D55: 3.75 | E55: 7.5 | F55: 12.57 | G55: 133
A56: Бифштекс по-домашнему с соусом томатным | B56: 80/20 | D56: 12.3 | E56: 11.9 | F56: 8.9 | G56: 189
A57: Рыба запеченная с сыром, соусом Переменка | B57: 70/5/5 | D57: 17.5 | E57: 10.6 | F57: 2.7 | G57: 175
A58: Шашлычок из куриных грудок | B58: 90 | D58: 17.2 | E58: 15.4 | F58: 1.1 | G58: 210
A59: Грудки куриные по-французски | B59: 180 | D59: 17 | E59: 29 | F59: 16.9 | G59: 397
A60: Рис отварной | B60: 180 | D60: 4.6 | E60: 6.5 | F60: 48 | G60: 269
A61: Макароны отварные | B61: 180 | D61: 6.77 | E61: 5.4 | F61: 43.13 | G61: 248
A62: Капуста тушёная | B62: 180 | D62: 4.21 | E62: 7.4 | F62: 18 | G62: 159
A63: Чай с сахаром, урюком | B63: 200/8/10 | D63: 0.5 | F63: 13.28 | G63: 56
A64: Компот из урюка | B64: 200 | D64: 1 | E64: 0.1 | F64: 30.56 | G64: 128
A67: Хлеб ржано-пшеничный / пшеничный | B67: 20/20 | D67: 2.52 | E67: 0.4 | F67: 18.84 | G67: 91
A68: Итого: | D68: =SUM(D52:D67) -> 91.53 | E68: =SUM(E52:E67) -> 125.72 | F68: =SUM(F52:F67) -> 239.19 | G68: =SUM(G52:G67) -> 2460
B69: Сагдиева Л.Ф.
B70: Руслова В.С.

Sheet 05.10
A1: МБОУ "СОШ № 32" | E1: 2022-10-05
A3: Завтрак 1-4 классы
A4: Наименование | B4: Выход | D4: Белки | E4: Жиры | F4: Угл-ды | G4: Ккал
A5: Салат из моркови | B5: 60 | D5: 0.33 | E5: 1.1 | F5: 1.34 | G5: 17
A6: Блинчики со сгущённым молоком | B6: 45/10 | D6: 2.19 | E6: 2.52 | F6: 12.5 | G6: 79
A7: Котлеты Аппетитные с соусом томатным | B7: 80/10 | D7: 8.1 | E7: 10.8 | F7: 0.2 | G7: 128
A8: Макаронные изделия отварные | B8: 150 | D8: 5.6 | E8: 5.06 | F8: 35.91 | G8: 212
A9: Компот из крыжовника | B9: 200 | D9: 0.17 | F9: 17.44 | G9: 71
A10: Хлеб ржано-пшеничный / пшеничный | B10: 20/15 | D10: 2.14 | E10: 0.32 | F10: 16.38 | G10: 35
A11: Итого: | D11: =SUM(D5:D10) -> 18.53 | E11: =SUM(E5:E10) -> 19.8 | F11: =SUM(F5:F10) -> 83.77 | G11: =SUM(G5:G10) -> 542
A13: Обед 1-4 классы
A14: Наименование | B14: Выход | D14: Белки | E14: Жиры | F14: Угл-ды | G14: Ккал
A15: Суп картофельный с вермишелью, мясными фрикадельками | B15: 250/11 | D15: 2.9 | E15: 3 | F15: 20.9 | G15: 123
A16: Пицца с сыром | B16: 85 | D16: 13.6 | E16: 11.4 | F16: 24 | G16: 252
A17: Чай с сахаром | B17: 200/8 | D17: 0.02 | F17: 7.98 | G17: 32
A18: Хлеб ржано-пшеничный | B18: 15 | D18: 0.75 | E18: 0.15 | F18: 6.8 | G18: 33
A19: Итого: | D19: =SUM(D15:D18) -> 17.27 | E19: =SUM(E15:E18) -> 14.55 | F19: 59.68 | G19: 440
B21: Сагдиева Л.Ф.
B22: Руслова В.С.
A24: МБОУ "СОШ № 32" | E24: =E1 -> 2022-10-05
A26: Обед 5-7 классы
A27: Наименование | B27: Выход | D27: Белки | E27: Жиры | F27: Угл-ды | G27: Ккал
A28: Винегрет овощной | B28: 100 | D28: 1.22 | E28: 10.16 | F28: 7.17 | G28: 126
A29: Плов с говядиной | B29: 40/160 | D29: 11.9 | E29: 15 | F29: 42.76 | G29: 357
A30: Компот из яблок | B30: 200 | D30: 0.08 | E30: 0.1 | F30: 11.9 | G30: 49
A31: Хлеб ржано-пшеничный / пшеничный | B31: 15/15 | D31: 1.89 | E31: 0.3 | F31: 14.3 | G31: 68
A34: Итого: | D34: =SUM(D28:D33) -> 15.09 | E34: =SUM(E28:E33) -> 25.56 | F34: =SUM(F28:F33) -> 76.13 | G34: =SUM(G28:G33) -> 600
A36: СУП 5-11 классы
A37: Наименование | B37: Выход | D37: Белки | E37: Жиры | F37: Угл-ды | G37: Ккал
A38: Суп картофельный с вермишелью, мясными фрикадельками | B38: 250/11 | D38: 2.9 | E38: 3 | F38: 20.9 | G38: 123
A40: Итого: | D40: =SUM(D38:D39) -> 2.9 | E40: =SUM(E38:E39) -> 3 | F40: 20.9 | G40: 123
B45: Сагдиева Л.Ф.
B46: Руслова В.С.
A48: МБОУ "СОШ № 32" | E48: =E24 -> 2022-10-05
A50: Обед 8-11 классы
A51: Наименование | B51: Выход | D51: Белки | E51: Жиры | F51: Угл-ды | G51: Ккал
A52: =A28 -> Винегрет овощной | B52: =B28 -> 100 | C52: 0 | D52: 1.22 | E52: 10.16 | F52: 7.17 | G52: 126
A53: Яблоки свежие | B53: 120 | D53: 0.48 | E53: 0.48 | F53: 11.76 | G53: 56
A54: Салат изб/к капусты со свежими огурцами | B54: 100 | D54: 1.29 | E54: 10.1 | F54: 3.61 | G54: 111
A55: Ассорти овощное | B55: 40/40/5 | D55: 0.9 | E55: 5.15 | F55: 2.85 | G55: 62
A56: Салат из моркови с яблоками | B56: 100 | D56: 0.99 | E56: 10.14 | F56: 8.8 | G56: 132
A57: Суп картофельный с вермишелью, куриными грудками | B57: 250/10 | D57: 4.61 | E57: 4.5 | F57: 21.1 | G57: 144
A58: Котлеты Аппетитные с соусом томатным | B58: 80/20 | D58: 11.8 | E58: 13.6 | F58: 7.91 | G58: 200
A59: Гуляш из индейки | B59: 50/50 | D59: 14.6 | E59: 15.3 | F59: 3.23 | G59: 209
A60: Рыба запеченная | B60: 80 | D60: 18.5 | E60: 10.6 | F60: 3.5 | G60: 182
A61: Наггетсы куриные с соусом томатным | B61: 5шт/80/20 | D61: 16.6 | E61: 20.7 | F61: 4.3 | G61: 266
A62: Плов с говядиной | B62: 40/160 | D62: 11.9 | E62: 15 | F62: 42.76 | G62: 357
A63: Картофель запеченный | B63: 150 | D63: 3.5 | E63: 8.2 | F63: 28.4 | G63: 202
A64: Каша гречневая вязкая | B64: 180 | D64: 4.2 | E64: 5.6 | F64: 26.41 | G64: 173
A65: Овощная смесь отварная | B65: 100 | D65: 3.9 | E65: 3.6 | F65: 8.8 | G65: 80
A66: Чай с сахаром | B66: 200/8 | F66: 8 | G66: 32
A67: Хлеб ржано-пшеничный / пшеничный | B67: 15/15 | D67: 1.89 | E67: 0.3 | F67: 14.3 | G67: 68
A68: Итого: | D68: =SUM(D52:D67) -> 96.38 | E68: =SUM(E52:E67) -> 133.43 | F68: =SUM(F52:F67) -> 202.9 | G68: =SUM(G52:G67) -> 2400
B69: Сагдиева Л.Ф.
B70: Руслова В.С.

Sheet 06.10
A1: МБОУ "СОШ № 32" | E1: 2022-10-06
A3: Завтрак 1-4 классы
A4: Наименование | B4: Выход | D4: Белки | E4: Жиры | F4: Угл-ды | G4: Ккал
A5: Яблоки | B5: 120 | D5: 0.48 | E5: 0.48 | F5: 11.76 | G5: 56
A6: Каша вязкая молочная из рисовой и пшенной крупы с маслом | B6: 150/5 | D6: 5.96 | E6: 10.32 | F6: 6.34 | G6: 142
A7: Блинчики со сгущённым молоком | B7: 45/10 | D7: 2.19 | E7: 2.52 | F7: 12.5 | G7: 79
A8: Компот из замороженной красной смородины | B8: 200 | D8: 0.15 | E8: 0.05 | F8: 16.89 | G8: 71
A9: Батон | B9: 30 | D9: 2.25 | E9: 0.87 | F9: 15.42 | G9: 79
A11: Итого: | D11: =SUM(D5:D10) -> 11.03 | E11: =SUM(E5:E10) -> 14.24 | F11: =SUM(F5:F10) -> 62.91 | G11: =SUM(G5:G10) -> 427
A13: Обед 1-4 классы
A14: Наименование | B14: Выход | D14: Белки | E14: Жиры | F14: Угл-ды | G14: Ккал
A15: Гуляш из филе грудок индейки | B15: 50/50 | D15: 10 | E15: 12.6 | F15: 2.1 | G15: 162
A16: Каша гречневая вязкая | B16: 180 | D16: 4.2 | E16: 5.6 | F16: 26.4 | G16: 173
A17: Компот из яблок | B17: 200 | D17: 0.08 | E17: 0.1 | F17: 11.9 | G17: 49
A18: Хлеб ржано-пшеничный | B18: 20 | D18: 1.52 | E18: 0.16 | F18: 9.8 | G18: 47
A19: Итого: | D19: =SUM(D15:D18) -> 15.8 | E19: =SUM(E15:E18) -> 18.46 | F19: 50.2 | G19: 431
B21: Сагдиева Л.Ф.
B22: Руслова В.С.
A24: МБОУ "СОШ № 32" | E24: =E1 -> 2022-10-06
A26: Обед 5-7 классы
A27: Наименование | B27: Выход | D27: Белки | E27: Жиры | F27: Угл-ды | G27: Ккал
A28: Огурцы свежие | B28: 75 | D28: 0.53 | E28: 0.1 | F28: 1.43 | G28: 8
A29: Буритос скурицей и сыром | B29: 180 | D29: 21.6 | E29: 35.3 | F29: 29.6 | G29: 525
A30: Чай с сахаром, лимоном | B30: 200/8/5 | D30: 0.05 | F30: 8.13 | G30: 34
A31: Хлеб ржано-пшеничный / пшеничный | B31: 25/20 | D31: 2.77 | E31: 0.4 | F31: 21.1 | G31: 102
A34: Итого: | D34: =SUM(D28:D33) -> 24.95 | E34: =SUM(E28:E33) -> 35.8 | F34: =SUM(F28:F33) -> 60.26 | G34: =SUM(G28:G33) -> 669
A36: СУП 5-11 классы
A37: Наименование | B37: Выход | D37: Белки | E37: Жиры | F37: Угл-ды | G37: Ккал
A38: Щи из свежей капусты с картофелем, фрикадельками из птицы со сметаной | B38: 250/22/20 | D38: 5.6 | E38: 9.7 | F38: 9.8 | G38: 165
A40: Итого: | D40: =SUM(D38:D39) -> 5.6 | E40: =SUM(E38:E39) -> 9.7 | F40: 9.8 | G40: 165
B45: Сагдиева Л.Ф.
B46: Руслова В.С.
A48: МБОУ "СОШ № 32" | E48: =E24 -> 2022-10-06
A50: Обед 8-11 классы
A51: Наименование | B51: Выход | D51: Белки | E51: Жиры | F51: Угл-ды | G51: Ккал
A52: =A28 -> Огурцы свежие | B52: =B28 -> 75 | C52: 0 | D52: 0.53 | E52: 0.1 | F52: 1.43 | G52: 8
A53: Яблоки свежие | B53: 120 | D53: 0.48 | E53: 0.48 | F53: 11.76 | G53: 56
A54: Салат Прага | B54: 100 | D54: 6.5 | E54: 12 | F54: 1.8 | G54: 142
A55: Салат Каприз | B55: 80 | D55: 2.2 | E55: 9.6 | F55: 4.5 | G55: 115
A56: Салат Здоровье | B56: 100 | D56: 1.3 | E56: 10.1 | F56: 7.2 | G56: 126
A57: Салат из б/к капусты | B57: 100 | D57: 1.55 | E57: 5.1 | F57: 9.41 | G57: 91
A58: Щи из свежей капусты с картофелем, фрикадельками из птицы со сметаной | B58: 250/11/5 | D58: 3.43 | E58: 6.5 | F58: 7.42 | G58: 103
A59: Котлеты Пожарские с соусом томатным | B59: 80/20 | D59: 11.5 | E59: 11.2 | F59: 8.52 | G59: 178
A60: Рыба по-Московски | B60: 70/20 | D60: 18 | E60: 13.8 | F60: 2 | G60: 204
A61: Цыплята запеченные | B61: 100 | D61: 26.7 | E61: 24.5 | F61: 1 | G61: 332
A62: Чахохбили из куриных грудок | B62: 60/50 | D62: 12.6 | E62: 16.6 | F62: 7 | G62: 229
A63: Гречка с фаршем и овощами | B63: 200 | D63: 18.1 | E63: 15.1 | F63: 48 | G63: 400
A64: Буритос скурицей и сыром | B64: 180 | D64: 21.6 | E64: 35.3 | F64: 29.6 | G64: 525
A65: Спагетти отварные | B65: 180 | D65: 6.77 | E65: 5.4 | F65: 43.14 | G65: 248
A66: Рагу овощное | B66: 180 | D66: 3.36 | E66: 9.2 | F66: 20.2 | G66: 178
A67: Рис отварной | B67: 180 | D67: 4.6 | E67: 6.5 | F67: 48 | G67: 269
A68: Чай с сахаром, лимоном | B68: 200/8/5 | D68: 0.05 | F68: 8.13 | G68: 34
A69: напиток из замороженной клюквы | B69: 200 | D69: 0.12 | E69: 0.03 | F69: 11.6 | G69: 48
A70: Хлеб ржано-пшеничный / пшеничный | B70: 25/20 | D70: 2.77 | E70: 0.4 | F70: 21.1 | G70: 102
A71: Итого: | D71: =SUM(D52:D70) -> 142.16 | E71: =SUM(E52:E70) -> 181.91 | F71: =SUM(F52:F70) -> 291.81 | G71: =SUM(G52:G70) -> 3388
B72: Сагдиева Л.Ф.
B73: Руслова В.С.

Sheet 07.10
A1: МБОУ "СОШ № 32" | E1: 2022-10-07
A3: Завтрак 1-4 классы
A4: Наименование | B4: Выход | D4: Белки | E4: Жиры | F4: Угл-ды | G4: Ккал
A5: Салат из свеклы отварной с маслом | B5: 60 | D5: 0.85 | E5: 3.65 | F5: 5.02 | G5: 56
A6: Жаркое по-домашнему | B6: 40/150 | D6: 12.53 | E6: 12.78 | F6: 37.5 | G6: 315
A7: Чай с сахаром, лимоном | B7: 200/8/7 | D7: 0.11 | E7: 0.01 | F7: 8.29 | G7: 35
A8: Хлеб сельский/ пшеничный | B8: 20/15 | D8: 2.14 | E8: 0.32 | F8: 16.38 | G8: 79
A11: Итого: | D11: =SUM(D5:D10) -> 15.63 | E11: =SUM(E5:E10) -> 16.76 | F11: =SUM(F5:F10) -> 67.19 | G11: =SUM(G5:G10) -> 485
A13: Обед 1-4 классы
A14: Наименование | B14: Выход | D14: Белки | E14: Жиры | F14: Угл-ды | G14: Ккал
A15: Суп картофельный с фрикадельками из птицы | B15: 250/22 | D15: 6.2 | E15: 6.1 | F15: 20 | G15: 161
A16: Маффин шоколадный | B16: 50 | D16: 3.2 | E16: 10.4 | F16: 29.8 | G16: 211
A17: Чай с сахаром | B17: 200/8 | D17: 0.02 | F17: 7.9 | G17: 32
A18: Хлеб ржано-пшеничный | B18: 15 | D18: 0.75 | E18: 0.15 | F18: 6.8 | G18: 33
A19: Итого: | D19: =SUM(D15:D18) -> 10.17 | E19: =SUM(E15:E18) -> 16.65 | F19: 64.5 | G19: 437
B21: Сагдиева Л.Ф.
B22: Руслова В.С.
A24: МБОУ "СОШ № 32" | E24: =E1 -> 2022-10-07
A26: Обед 5-7 классы
A27: Наименование | B27: Выход | D27: Белки | E27: Жиры | F27: Угл-ды | G27: Ккал
A28: Салат Итальянские каникулы | B28: 100 | D28: 2.6 | E28: 8.4 | F28: 6.7 | G28: 115
A29: Азу с говядиной | B29: 50/50 | D29: 17.2 | E29: 21 | F29: 19 | G29: 334
A30: Компот из компотной смеси | B30: 200 | D30: 0.14 | F30: 11.2 | G30: 46
A31: Хлеб ржано-пшеничный / пшеничный | B31: 15/15 | D31: 1.89 | E31: 0.3 | F31: 14.3 | G31: 68
A34: Итого: | D34: =SUM(D28:D33) -> 21.83 | E34: =SUM(E28:E33) -> 29.7 | F34: =SUM(F28:F33) -> 51.2 | G34: =SUM(G28:G33) -> 563
A36: СУП 5-11 классы
A37: Наименование | B37: Выход | D37: Белки | E37: Жиры | F37: Угл-ды | G37: Ккал
A38: Суп картофельный с мясными фрикадельками | B38: 200/11 | D38: 6.2 | E38: 6.1 | F38: 20 | G38: 161
A40: Итого: | D40: =SUM(D38:D39) -> 6.2 | E40: =SUM(E38:E39) -> 6.1 | F40: 20 | G40: 161
B45: Сагдиева Л.Ф.
B46: Руслова В.С.
A48: МБОУ "СОШ № 32" | E48: =E24 -> 2022-10-07
A50: Обед 8-11 классы
A51: Наименование | B51: Выход | D51: Белки | E51: Жиры | F51: Угл-ды | G51: Ккал
A52: =A28 -> Салат Итальянские каникулы | B52: =B28 -> 100 | C52: 0 | D52: 2.6 | E52: 8.4 | F52: 6.7 | G52: 115
A53: Салат Бурячок | B53: 100 | D53: 1.5 | E53: 8.6 | F53: 9 | G53: 121
A54: Помидоры | B54: 75 | D54: 0.83 | E54: 0.2 | F54: 2.85 | G54: 18
A55: Салат Витаминный | B55: 100 | D55: 1.21 | E55: 5.2 | F55: 10.9 | G55: 96
A56: Салат Здоровье | B56: 100 | D56: 1.3 | E56: 10.1 | F56: 7.2 | G56: 126
A57: Салат из моркови | B57: 100 | D57: 1.05 | E57: 10.1 | F57: 15.6 | G57: 158
A58: Суп картофельный | B58: 250 | D58: 2.52 | E58: 3 | F58: 19.9 | G58: 117
A59: Рыба запеченная с сыром, соусом Переменка | B59: 70/5/5 | D59: 17.5 | E59: 10.6 | F59: 2.7 | G59: 175
A60: Шашлычок из куриных грудок | B60: 90 | D60: 17.25 | E60: 15.4 | F60: 1.1 | G60: 210
A61: Гуляш из индейки | B61: 50/20 | D61: 14.6 | E61: 15.3 | F61: 3.23 | G61: 209
A62: Азу с говядиной | B62: 50/50 | D62: 17.2 | E62: 21 | F62: 19 | G62: 334
A63: Сырники классические со сгущённым молоком | B63: 4 шт/140/30 | D63: 37.4 | E63: 11.3 | F63: 45.13 | G63: 438
A64: Пюре картофельное | B64: 180 | D64: 3.94 | E64: 5.6 | F64: 26.46 | G64: 175
A65: Капуста тушёная | B65: 180 | D65: 4.21 | E65: 7.4 | F65: 18 | G65: 159
A66: Чай с сахаром | B66: 200/8 | F66: 8 | G66: 32
A67: Компот из компотной смеси | B67: 200 | D67: 0.14 | F67: 11.2 | G67: 46
A68: Хлеб ржано-пшеничный / пшеничный | B68: 15/15 | D68: 1.89 | E68: 0.3 | F68: 14.3 | G68: 68
A71: Итого: | D71: =SUM(D52:D70) -> 125.14 | E71: =SUM(E52:E70) -> 132.5 | F71: =SUM(F52:F70) -> 221.27 | G71: =SUM(G52:G70) -> 2597
B72: Сагдиева Л.Ф.
B73: Руслова В.С.

Sheet 08.10 СБ
A1: МБОУ "СОШ № 32" | E1: 2022-10-08
A3: Обед 5-11 классы
A4: Наименование | B4: Выход | D4: Белки | E4: Жиры | F4: Угл-ды | G4: Ккал
A5: Салат из свежих помидор | B5: 100 | D5: 1.05 | E5: 6.2 | F5: 3.6 | G5: 77
A6: Пельмени для "Умников и умниц" отварные с маслом | B6: 180/5 | D6: 21.4 | E6: 22.5 | F6: 38.3 | G6: 442
A7: Чай с сахаром | B7: 200/8 | F7: 8 | G7: 32
A8: Хлеб ржано-пшеничный / пшеничный | B8: 20/20 | D8: 2.52 | E8: 0.4 | F8: 18.84 | G8: 91
A11: Итого: | D11: =SUM(D5:D10) -> 24.97 | E11: =SUM(E5:E10) -> 29.1 | F11: =SUM(F5:F10) -> 68.74 | G11: =SUM(G5:G10) -> 642
B22: Сагдиева Л.Ф.
B23: Руслова В.С.

Sheet Лист1
